bitfinex-derivatives/quotes_BTCF0:USTF0_20251028
["timestamp","ask_amount","ask_price","bid_price","bid_amount"]
[1761613236039,0.44024482,114070.0,114060.0,0.49569976]
[1761613237036,0.44024482,114070.0,114060.0,0.50908976]
[1761613237736,0.42666482,114070.0,114060.0,0.50908976]
[1761613238143,0.40333,114070.0,114060.0,0.50908976]
[1761613238646,0.0213,114070.0,114060.0,0.66143964]
[1761613238945,0.40333,114070.0,114060.0,0.50908976]
[1761613239247,0.40333,114070.0,114060.0,0.66143964]
[1761613239543,0.40333,114070.0,114060.0,0.50908976]
[1761613240939,0.40333,114070.0,114060.0,0.36198976]
[1761613241143,0.41691,114070.0,114060.0,0.34859976]
[1761613241744,0.40333,114070.0,114060.0,0.36198976]
[1761613242645,0.42666289,114070.0,114060.0,0.36198976]
[1761613244148,0.06586289,114070.0,114060.0,0.36198976]
[1761613244743,0.06586289,114070.0,114060.0,0.60201524]
[1761613245046,0.06586289,114070.0,114060.0,0.44966536]
[1761613245548,0.06586289,114070.0,114060.0,0.60201524]
[1761613245549,0.02333289,114070.0,114060.0,0.60201524]
[1761613246250,0.06586289,114070.0,114060.0,0.60201524]
[1761613246744,0.06586289,114070.0,114060.0,0.74911524]
[1761613247148,0.04253,114070.0,114060.0,0.74911524]
[1761613247443,0.06586484,114070.0,114060.0,0.74911524]
[1761613247846,0.06586484,114070.0,114060.0,0.66143964]
[1761613248547,0.06586484,114070.0,114060.0,0.67036776]
[1761613248749,0.06586484,114070.0,114060.0,0.66143964]
[1761613249148,0.06586484,114070.0,114060.0,0.20439]
[1761613249342,0.06586484,114070.0,114060.0,0.50908976]
[1761613249649,0.06586484,114070.0,114060.0,0.59676536]
[1761613249849,0.06586484,114070.0,114060.0,0.50908976]
[1761613250148,0.06586484,114070.0,114060.0,0.59676536]
[1761613250345,0.04463484,114070.0,114060.0,0.74911524]
[1761613250550,0.06586484,114070.0,114060.0,0.74911524]
[1761613250751,0.06586484,114070.0,114060.0,0.20439]
[1761613250951,0.06586484,114070.0,114060.0,0.50908976]
[1761613251844,0.06586484,114070.0,114060.0,0.35662062]
[1761613252752,0.04253,114070.0,114060.0,0.50885124]
[1761613253054,0.05611,114070.0,114060.0,0.50885124]
[1761613253255,0.05611,114070.0,114060.0,0.35662062]
[1761613253756,0.41691,114070.0,114060.0,0.35662062]
[1761613254751,0.05611,114060.0,114050.0,0.19613062]
[1761613254950,0.41691,114060.0,114050.0,0.19613062]
[1761613255154,0.41691,114060.0,114050.0,0.20952062]
[1761613259656,0.41691,114060.0,114050.0,0.19613062]
[1761613260952,0.4402838,114060.0,114050.0,0.19613062]
[1761613261359,0.4402838,114060.0,114050.0,0.15223062]
[1761613261556,0.0577,114050.0,114040.0,0.04342]
[1761613261762,0.4185,114050.0,114040.0,0.19565062]
[1761613264764,0.38383,114060.0,114050.0,0.0129]
[1761613264958,0.38383,114060.0,114050.0,0.36078124]
[1761613265169,0.40574,114060.0,114050.0,0.36078124]
[1761613265579,0.40574,114060.0,114050.0,0.20855062]
[1761613266075,0.04494,114060.0,114050.0,0.29623392]
[1761613270281,0.3608,114070.0,114060.0,0.1466856]
[1761613270574,0.38389,114080.0,114070.0,0.1466779]
[1761613270778,0.38389,114080.0,114070.0,0.29890852]
[1761613270779,0.04642788,114080.0,114070.0,0.29890852]
[1761613270980,0.06903788,114080.0,114070.0,0.3075651]
[1761613271977,0.06903788,114080.0,114070.0,0.29890852]
[1761613276277,0.0457,114080.0,114070.0,0.29890852]
[1761613276675,0.3608,114090.0,114080.0,0.0876599]
[1761613276872,0.42979507,114090.0,114080.0,0.29890052]
[1761613277575,0.44322507,114090.0,114080.0,0.19807062]
[1761613278478,0.42979507,114090.0,114080.0,0.21124062]
[1761613278682,0.42979507,114090.0,114080.0,0.29890052]
[1761613281887,0.4065,114090.0,114080.0,0.29890052]
[1761613286991,0.41993,114090.0,114080.0,0.21124062]
[1761613287186,0.41993,114090.0,114080.0,0.19807062]
[1761613288191,0.41993,114090.0,114080.0,0.04584]
[1761613288393,0.41993,114090.0,114080.0,0.19807062]
[1761613289489,0.41993,114090.0,114080.0,0.28573052]
[1761613289881,0.41993,114090.0,114080.0,0.19807062]
[1761613292394,0.41993,114090.0,114080.0,0.04584]
[1761613292589,0.41993,114090.0,114080.0,0.19807062]
[1761613292787,0.41993,114090.0,114070.0,0.34221062]
[1761613292995,0.42076,114080.0,114070.0,0.34221062]
[1761613293190,0.42076,114080.0,114070.0,0.18998]
[1761613293386,0.42076,114080.0,114070.0,0.34221062]
[1761613293893,0.42076,114080.0,114070.0,0.19511062]
[1761613296295,0.44403268,114080.0,114070.0,0.19511062]
[1761613302202,0.46767367,114080.0,114070.0,0.19511062]
[1761613302698,0.44403268,114080.0,114070.0,0.19511062]
[1761613307891,0.44503268,114080.0,114070.0,0.20011062]
[1761613311802,0.44503268,114080.0,114070.0,0.20010047]
[1761613312992,0.44503268,114080.0,114070.0,0.04788]
[1761613313200,0.44503268,114080.0,114070.0,0.20010047]
[1761613315301,0.44503268,114080.0,114070.0,0.35232094]
[1761613318503,0.42176,114080.0,114070.0,0.35232094]
[1761613318810,0.44504128,114080.0,114070.0,0.35232094]
[1761613320107,0.44504128,114080.0,114070.0,0.20010047]
[1761613320410,0.44504128,114080.0,114070.0,0.36632094]
[1761613320608,0.44504655,114080.0,114070.0,0.36632094]
[1761613321100,0.44504655,114080.0,114070.0,0.35232094]
[1761613321703,0.44504655,114080.0,114070.0,0.20010047]
[1761613323207,0.59726702,114080.0,114070.0,0.15722047]
[1761613323700,0.44504655,114080.0,114070.0,0.15722047]
[1761613324108,0.44504655,114080.0,114070.0,0.17896047]
[1761613327203,0.44500767,114080.0,114070.0,0.20149047]
[1761613327607,0.44500767,114080.0,114070.0,0.17896047]
[1761613327608,0.46860804,114080.0,114070.0,0.17896047]
[1761613330312,0.44500767,114080.0,114070.0,0.17896047]
[1761613331014,0.46860804,114080.0,114070.0,0.17896047]
[1761613332016,0.46860804,114080.0,114070.0,0.20120047]
[1761613338820,0.46860804,114080.0,114070.0,0.35342094]
[1761613339213,0.46860804,114080.0,114070.0,0.20120047]
[1761613341322,0.50004061,114080.0,114070.0,0.20120047]
[1761613342721,0.46860804,114080.0,114070.0,0.20120047]
[1761613345622,0.46866645,114080.0,114070.0,0.20120047]
[1761613345825,0.44503667,114080.0,114070.0,0.20120047]
[1761613346525,0.44503667,114080.0,114070.0,0.35342094]
[1761613346929,0.43113667,114080.0,114070.0,0.36621094]
[1761613347926,0.07033667,114080.0,114070.0,0.36621094]
[1761613348529,0.02427667,114080.0,114070.0,0.60609901]
[1761613349026,0.02427667,114080.0,114070.0,1.20609901]
[1761613349328,0.02427667,114080.0,114070.0,0.96689901]
[1761613350024,0.44869815,114110.0,114080.0,0.01307]
[1761613350230,0.67180391,114110.0,114100.0,0.34962094]
[1761613351125,0.66301554,114110.0,114100.0,0.36269094]
[1761613351338,0.64038576,114110.0,114100.0,0.36269094]
[1761613351533,0.66401554,114110.0,114100.0,0.36269094]
[1761613351728,0.64038576,114110.0,114100.0,0.36269094]
[1761613352124,0.62762576,114110.0,114100.0,0.51491141]
[1761613352329,0.42762576,114110.0,114100.0,0.36269094]
[1761613352730,0.42662576,114110.0,114100.0,0.36269094]
[1761613352930,0.44510576,114110.0,114100.0,0.36269094]
[1761613354531,0.43162576,114110.0,114100.0,0.36269094]
[1761613354732,0.40852,114110.0,114100.0,0.36269094]
[1761613354932,0.422,114110.0,114100.0,0.36269094]
[1761613355133,0.422,114110.0,114100.0,0.04518]
[1761613355326,0.422,114110.0,114100.0,0.34962094]
[1761613356130,0.422,114110.0,114100.0,0.36269094]
[1761613358135,0.422,114110.0,114100.0,0.34962094]
[1761613359226,0.422,114110.0,114100.0,0.02239]
[1761613359429,0.57422047,114110.0,114100.0,0.19740047]
[1761613360024,0.422,114110.0,114100.0,0.34962094]
[1761613360536,0.422,114110.0,114100.0,0.36269094]
[1761613361038,0.422,114110.0,114100.0,0.34962094]
[1761613362531,0.57422047,114110.0,114100.0,0.19740047]
[1761613362935,0.422,114110.0,114100.0,0.19740047]
[1761613365736,0.422,114110.0,114100.0,0.34962094]
[1761613366438,0.422,114110.0,114100.0,0.19740047]
[1761613368030,0.57422047,114110.0,114100.0,0.19740047]
[1761613369036,0.57422047,114110.0,114100.0,0.17461047]
[1761613369341,0.57422047,114110.0,114100.0,0.15222047]
[1761613369540,0.0562,114100.0,114090.0,0.19740047]
[1761613369832,0.56922047,114100.0,114090.0,0.15222047]
[1761613370343,0.56922047,114100.0,114090.0,0.17461047]
[1761613370741,0.417,114100.0,114090.0,0.17461047]
[1761613371242,0.42,114100.0,114090.0,0.19740047]
[1761613372433,0.44292409,114100.0,114090.0,0.19740047]
[1761613372733,0.59514456,114100.0,114090.0,0.19740047]
[1761613372933,0.0562,114090.0,114080.0,0.04518]
[1761613373133,0.56922047,114090.0,114080.0,0.17461047]
[1761613373851,0.417,114090.0,114080.0,0.02239]
[1761613375234,0.03509,114080.0,114070.0,0.19740755]
[1761613375440,0.417,114080.0,114070.0,0.04518]
[1761613375636,0.417,114080.0,114070.0,0.19740755]
[1761613375840,0.0562,114070.0,114060.0,1.20671755]
[1761613376044,0.417,114070.0,114060.0,1.20671755]
[1761613377741,0.417,114070.0,114060.0,1.21171755]
[1761613378243,0.417,114070.0,114060.0,1.3639451]
[1761613378635,0.417,114070.0,114060.0,1.2168451]
[1761613378636,0.40352,114070.0,114060.0,1.2168451]
[1761613379536,0.3608,114070.0,114060.0,1.2168451]
[1761613380234,0.38363,114070.0,114060.0,1.2168451]
[1761613380435,0.3608,114070.0,114060.0,1.2168451]
[1761613380641,0.38363,114070.0,114060.0,1.2168451]
[1761613380842,0.40558,114070.0,114060.0,1.2168451]
[1761613381841,0.3608,114070.0,114060.0,1.3045204]
[1761613382043,0.04478,114080.0,114070.0,0.05846]
[1761613382342,0.04478,114080.0,114070.0,0.21068755]
[1761613383143,0.02283,114080.0,114070.0,0.21068755]
[1761613383731,0.3608,114090.0,114080.0,0.05846]
[1761613383936,0.3608,114090.0,114080.0,0.3629151]
[1761613384136,0.38363,114090.0,114080.0,0.3629151]
[1761613384436,0.40558,114100.0,114090.0,0.05846]
[1761613384637,0.40665115,114100.0,114090.0,0.3629151]
[1761613384943,0.04585115,114100.0,114090.0,0.3629151]
[1761613386437,0.02602115,114100.0,114090.0,0.3629151]
[1761613386946,0.003,114100.0,114090.0,0.3629151]
[1761613387136,0.02509,114100.0,114090.0,0.3629151]
[1761613388851,0.003,114100.0,114090.0,0.3629151]
[1761613389542,0.02509,114100.0,114090.0,0.3629151]
[1761613389942,0.003,114100.0,114090.0,0.3629151]
[1761613391346,0.02509,114100.0,114090.0,0.3629151]
[1761613391546,0.04746,114100.0,114090.0,0.3629151]
[1761613392048,0.003,114100.0,114090.0,0.3629151]
[1761613393248,0.02509,114100.0,114090.0,0.3629151]
[1761613393451,0.02509,114100.0,114090.0,0.37165228]
[1761613393651,0.003,114100.0,114090.0,0.45930448]
[1761613393853,0.003,114100.0,114090.0,0.4505673]
[1761613394149,0.003,114100.0,114090.0,0.3629151]
[1761613394451,0.38589,114100.0,114090.0,0.3629151]
[1761613395143,0.02509,114100.0,114090.0,0.3629151]
[1761613395344,0.40826,114100.0,114090.0,0.3629151]
[1761613395651,0.40826,114100.0,114090.0,0.21068755]
[1761613395838,0.04746,114100.0,114090.0,0.21068755]
[1761613396044,0.40826,114100.0,114090.0,0.21068755]
[1761613399359,0.40526,114100.0,114090.0,0.21068755]
[1761613399858,0.41814,114100.0,114090.0,0.19800755]
[1761613406458,0.41814,114100.0,114090.0,0.21099755]
[1761613406763,0.40526,114100.0,114090.0,0.21099755]
[1761613407263,0.40526,114100.0,114090.0,0.3632251]
[1761613407463,0.40526,114100.0,114090.0,0.21099755]
[1761613408872,0.40426,114100.0,114090.0,0.3632251]
[1761613411068,0.42731579,114100.0,114090.0,0.3632251]
[1761613413172,0.06651579,114100.0,114090.0,0.3632251]
[1761613413369,0.42731579,114100.0,114090.0,0.3632251]
[1761613417274,0.02305579,114100.0,114090.0,0.5979773]
[1761613417579,0.44127071,114120.0,114110.0,0.05987]
[1761613417880,0.46429391,114120.0,114110.0,0.21209755]
[1761613418792,0.4407532,114120.0,114110.0,0.21209755]
[1761613419278,0.4467532,114120.0,114110.0,0.21209755]
[1761613423275,0.4336932,114120.0,114110.0,0.29973435]
[1761613423772,0.41067,114120.0,114110.0,0.29973435]
[1761613423974,0.41067,114120.0,114110.0,0.4519619]
[1761613424180,0.006,114120.0,114110.0,0.8127619]
[1761613424669,0.40467,114130.0,114110.0,0.9003987]
[1761613424875,0.42755784,114130.0,114120.0,0.3643251]
[1761613425070,0.38368784,114130.0,114120.0,0.4519543]
[1761613425274,0.40467,114150.0,114140.0,0.05987]
[1761613425476,0.40467,114150.0,114140.0,0.21209755]
[1761613427683,0.41367,114150.0,114140.0,0.21309755]
[1761613428084,0.42673,114150.0,114140.0,0.21309755]
[1761613428383,0.42673,114150.0,114140.0,0.19910755]
[1761613429171,0.3923,114150.0,114140.0,0.19910755]
[1761613429374,0.3923,114150.0,114140.0,0.21309755]
[1761613429779,0.41367,114150.0,114140.0,0.21309755]
[1761613431876,0.41367,114150.0,114140.0,0.3653251]
[1761613432775,0.3698,114150.0,114140.0,0.3653251]
[1761613432976,0.3923,114150.0,114140.0,0.3653251]
[1761613433178,0.0315,114150.0,114140.0,0.4529389]
[1761613433483,0.0225,114150.0,114140.0,0.4519389]
[1761613433679,0.0225,114150.0,114140.0,0.96420655]
[1761613433680,0.0295,114150.0,114140.0,0.96420655]
[1761613436586,0.007,114150.0,114140.0,0.96420655]
[1761613436778,0.0295,114150.0,114140.0,0.96420655]
[1761613436978,0.3608,114170.0,114150.0,0.1474761]
[1761613437180,0.3608,114170.0,114160.0,0.51579275]
[1761613437181,0.40467,114170.0,114160.0,0.51579275]
[1761613437480,0.40467,114170.0,114160.0,0.60339125]
[1761613437674,0.3833,114170.0,114160.0,0.60339125]
[1761613438179,0.3903,114170.0,114160.0,0.60339125]
[1761613439078,0.40409,114180.0,114170.0,0.1439608]
[1761613439280,0.40409,114180.0,114170.0,0.4479093]
[1761613440183,0.40409,114180.0,114170.0,0.3603185]
[1761613440382,0.40409,114180.0,114170.0,0.4479093]
[1761613440581,0.3608,114180.0,114170.0,0.4479093]
[1761613440785,0.38238,114180.0,114170.0,0.4479093]
[1761613441173,0.38238,114180.0,114170.0,0.4529093]
[1761613441378,0.40409,114180.0,114170.0,0.4529093]
[1761613442581,0.4169,114180.0,114170.0,0.3653185]
[1761613442889,0.04329,114180.0,114170.0,0.7261185]
[1761613444285,0.04329,114180.0,114170.0,0.96568355]
[1761613445176,0.40409,114180.0,114170.0,0.51729275]
[1761613445382,0.04329,114180.0,114170.0,0.3653185]
[1761613445583,0.40409,114180.0,114170.0,0.3653185]
[1761613446288,0.04329,114180.0,114170.0,0.3653185]
[1761613446488,0.04329,114180.0,114170.0,0.4529093]
[1761613448379,0.37386,114190.0,114180.0,0.05787]
[1761613448380,0.3608,114190.0,114180.0,0.05787]
[1761613448587,0.3608,114200.0,114190.0,0.1454455]
[1761613448588,0.02227,114200.0,114190.0,0.1454455]
[1761613448887,0.0443,114210.0,114200.0,0.05787]
[1761613449088,0.0443,114210.0,114200.0,0.51379275]
[1761613449285,0.0443,114210.0,114200.0,0.87459275]
[1761613450083,0.0443,114210.0,114200.0,0.7226185]
[1761613450084,0.05814,114210.0,114200.0,0.7226185]
[1761613450484,0.05814,114210.0,114200.0,0.7286185]
[1761613450787,0.05814,114210.0,114200.0,0.006]
[1761613451088,0.05814,114210.0,114200.0,0.3099485]
[1761613451289,0.05814,114210.0,114200.0,0.3309585]
[1761613452289,0.08059014,114210.0,114200.0,0.3309585]
[1761613452691,0.08059014,114210.0,114200.0,0.3279585]
[1761613453489,0.08059014,114210.0,114200.0,0.3509385]
[1761613453790,0.08059014,114210.0,114200.0,0.3648185]
[1761613454895,0.08059014,114210.0,114200.0,0.7256185]
[1761613454896,0.0443,114210.0,114200.0,0.7256185]
[1761613455988,0.0443,114210.0,114200.0,0.87759275]
[1761613456492,0.0443,114210.0,114200.0,0.7256185]
[1761613456788,0.0443,114210.0,114200.0,0.87759275]
[1761613456988,0.0443,114210.0,114200.0,0.7256185]
[1761613457184,0.0443,114210.0,114200.0,0.87759275]
[1761613457384,0.0443,114210.0,114200.0,0.7256185]
[1761613458494,0.05814,114210.0,114200.0,0.3648185]
[1761613459181,0.05814,114210.0,114200.0,0.7256185]
[1761613461495,0.0443,114210.0,114200.0,0.7256185]
[1761613463992,0.05814,114210.0,114200.0,0.7256185]
[1761613464190,0.10052901,114210.0,114200.0,0.15497425]
[1761613464384,0.10052901,114210.0,114200.0,0.3279585]
[1761613465389,0.08052901,114210.0,114200.0,0.3509385]
[1761613465591,0.44132901,114210.0,114200.0,0.19896425]
[1761613465792,0.46486972,114210.0,114200.0,0.3509385]
[1761613466296,0.46486972,114210.0,114200.0,0.04699]
[1761613466496,0.46486972,114210.0,114200.0,0.3509385]
[1761613468096,1.06486972,114210.0,114200.0,0.19896425]
[1761613468294,1.21684397,114210.0,114200.0,0.17598425]
[1761613468800,0.76827654,114210.0,114200.0,0.003]
[1761613469097,1.41385893,114210.0,114200.0,0.003]
[1761613469298,1.24188468,114210.0,114200.0,0.003]
[1761613470695,1.16330326,114210.0,114200.0,0.003]
[1761613472600,1.33527751,114210.0,114200.0,0.003]
[1761613472793,1.2261684,114210.0,114200.0,0.003]
[1761613474302,1.07419415,114210.0,114200.0,0.003]
[1761613474503,1.2261684,114210.0,114200.0,0.003]
[1761613475303,1.39814265,114210.0,114200.0,0.003]
[1761613477103,2.31814265,114210.0,114200.0,0.003]
[1761613477309,0.05789,114180.0,114170.0,0.04629]
[1761613477498,0.10397098,114180.0,114170.0,0.19826425]
[1761613478004,0.61674523,114180.0,114170.0,0.17523425]
[1761613478196,0.61674523,114180.0,114170.0,0.19826425]
[1761613478398,0.46477098,114180.0,114170.0,0.19826425]
[1761613479004,0.61674523,114180.0,114170.0,0.19926425]
[1761613479204,0.61674523,114180.0,114170.0,0.17623425]
[1761613479408,0.66674523,114180.0,114170.0,0.15297425]
[1761613479606,0.66674523,114180.0,114170.0,0.17623425]
[1761613479905,0.66674523,114180.0,114170.0,0.19926425]
[1761613480799,0.64316305,114180.0,114170.0,0.19926425]
[1761613481001,0.66674523,114180.0,114170.0,0.19926425]
[1761613481194,1.26674523,114180.0,114170.0,0.19926425]
[1761613482700,1.24316305,114180.0,114170.0,0.19926425]
[1761613485409,1.24316305,114180.0,114170.0,0.17623425]
[1761613485602,1.24316305,114180.0,114170.0,0.15297425]
[1761613485804,0.7951373,114180.0,114170.0,0.001]
[1761613489012,0.64316305,114180.0,114170.0,0.001]
[1761613490706,0.7951373,114180.0,114170.0,0.001]
[1761613490908,1.3951373,114180.0,114170.0,0.001]
[1761613491601,0.4411888,114180.0,114170.0,0.21232425]
[1761613492497,0.4411888,114180.0,114170.0,0.21132425]
[1761613492700,0.4451888,114180.0,114170.0,0.21132425]
[1761613493705,0.4451888,114180.0,114170.0,0.21131594]
[1761613494097,0.4411888,114180.0,114170.0,0.21131594]
[1761613494301,0.4431888,114180.0,114170.0,0.21131594]
[1761613495201,0.4431888,114180.0,114170.0,0.19825594]
[1761613495803,0.4631888,114180.0,114170.0,0.19825594]
[1761613498104,0.4631888,114180.0,114170.0,0.02326]
[1761613498311,0.05663,114170.0,114160.0,0.19630594]
[1761613498610,0.0654988,114170.0,114160.0,0.21019594]
[1761613500910,0.0654988,114170.0,114160.0,0.21119594]
[1761613501607,0.0791288,114170.0,114160.0,0.17563594]
[1761613501804,0.08774571,114170.0,114160.0,0.19730594]
[1761613502006,0.08774899,114170.0,114160.0,0.19730594]
[1761613502611,0.08974899,114170.0,114160.0,0.19630594]
[1761613504011,0.45054899,114170.0,114160.0,0.04434]
[1761613505120,0.05663,114160.0,114150.0,0.19630594]
[1761613506107,0.05663,114160.0,114150.0,0.20925594]
[1761613507118,0.05663,114160.0,114150.0,0.05829]
[1761613507310,0.05663,114160.0,114150.0,0.21025594]
[1761613507512,0.43996851,114160.0,114150.0,0.04534]
[1761613507708,0.43996851,114160.0,114150.0,0.19730594]
[1761613508011,0.48996851,114160.0,114150.0,0.04534]
[1761613508207,0.48996851,114160.0,114150.0,0.19730594]
[1761613508208,0.43996851,114160.0,114150.0,0.19730594]
[1761613511210,0.47996851,114160.0,114150.0,0.001]
[1761613511411,0.47996851,114160.0,114150.0,0.02253]
[1761613511616,0.47996851,114160.0,114150.0,0.001]
[1761613512014,0.47996851,114160.0,114150.0,0.02253]
[1761613512420,0.63193445,114160.0,114150.0,0.02253]
[1761613513020,0.59193445,114160.0,114150.0,0.04451]
[1761613513218,0.43996851,114160.0,114150.0,0.04451]
[1761613513519,0.44196851,114160.0,114150.0,0.04351]
[1761613514920,0.44196851,114160.0,114150.0,0.19547594]
[1761613515220,0.44196851,114160.0,114150.0,0.04351]
[1761613516225,0.44196851,114160.0,114150.0,0.19547594]
[1761613516820,0.44196851,114160.0,114150.0,0.04351]
[1761613517417,0.44196851,114160.0,114150.0,0.19547594]
[1761613517611,0.44196851,114160.0,114150.0,0.20842594]
[1761613518517,0.06753851,114160.0,114150.0,0.20842594]
[1761613518716,0.06753851,114160.0,114150.0,0.72119188]
[1761613520017,0.06753851,114160.0,114150.0,0.36039188]
[1761613520214,0.06553851,114160.0,114150.0,0.36139188]
[1761613520419,0.06553851,114160.0,114150.0,0.20942594]
[1761613523026,0.06553851,114160.0,114150.0,0.57022594]
[1761613524222,0.06553851,114160.0,114150.0,0.20942594]
[1761613524421,0.06553851,114160.0,114150.0,0.57022594]
[1761613533332,0.06753851,114160.0,114150.0,0.56922594]
[1761613538736,0.06753851,114160.0,114150.0,0.41726]
[1761613538941,0.06753851,114160.0,114150.0,0.56922594]
[1761613540132,0.06753851,114160.0,114150.0,0.20842594]
[1761613540332,0.44128851,114160.0,114150.0,0.19547594]
[1761613541535,0.06753851,114160.0,114150.0,0.20923594]
[1761613543538,0.42833851,114160.0,114150.0,0.20923594]
[1761613543838,0.05673,114150.0,114140.0,0.48267913]
[1761613544036,0.04378,114150.0,114140.0,0.63464507]
[1761613546242,0.04378,114150.0,114140.0,0.63564507]
[1761613548844,0.04378,114150.0,114140.0,0.46991913]
[1761613549041,0.79146188,114150.0,114140.0,0.06408913]
[1761613549235,0.79128869,114150.0,114140.0,0.001]
[1761613549436,1.53288869,114150.0,114140.0,0.001]
[1761613549641,1.51288869,114150.0,114140.0,0.001]
[1761613550243,1.56794307,114150.0,114140.0,0.001]
[1761613551247,1.55650016,114150.0,114140.0,0.001]
[1761613551548,0.05673,114140.0,114130.0,0.00010297]
[1761613551744,1.17568859,114140.0,114130.0,0.00010297]
[1761613552552,1.17568859,114140.0,114130.0,0.04513297]
[1761613553253,1.15208869,114140.0,114130.0,0.04513297]
[1761613553455,1.00212275,114140.0,114130.0,0.19709891]
[1761613553649,0.42917275,114140.0,114130.0,0.21085891]
[1761613555854,0.42917275,114140.0,114130.0,0.21095642]
[1761613560760,0.06837275,114140.0,114130.0,0.36301987]
[1761613560959,0.06837275,114140.0,114130.0,0.45064127]
[1761613561259,0.02459275,114140.0,114130.0,0.81144127]
[1761613561461,0.002,114140.0,114130.0,0.81144127]
[1761613561648,0.02327,114140.0,114130.0,0.81144127]
[1761613561852,0.002,114140.0,114130.0,0.81144127]
[1761613562554,0.40466,114150.0,114140.0,0.05673]
[1761613562751,0.42742451,114150.0,114140.0,0.3608569]
[1761613562949,0.02276451,114150.0,114140.0,0.8092707]
[1761613563559,0.04386,114160.0,114150.0,0.05673]
[1761613563754,0.06662745,114160.0,114150.0,0.20879345]
[1761613565460,0.07162745,114160.0,114150.0,0.20879345]
[1761613565666,0.07162745,114160.0,114150.0,0.05673]
[1761613565962,0.02276745,114160.0,114150.0,0.3608569]
[1761613566160,0.02576745,114160.0,114150.0,0.3608569]
[1761613566359,0.04760745,114160.0,114150.0,0.3608569]
[1761613566661,0.04760745,114160.0,114150.0,0.448463]
[1761613566857,0.02484,114160.0,114150.0,0.448463]
[1761613567057,0.003,114160.0,114150.0,0.448463]
[1761613567252,0.02484,114160.0,114150.0,0.448463]
[1761613567661,0.003,114160.0,114150.0,0.448463]
[1761613568363,0.003,114160.0,114150.0,0.809263]
[1761613568665,0.40416,114170.0,114160.0,0.05877]
[1761613568864,0.45579907,114170.0,114160.0,0.3628969]
[1761613569864,0.45879907,114170.0,114160.0,0.3628969]
[1761613571957,0.02577264,114170.0,114160.0,0.3628969]
[1761613572261,0.003,114170.0,114160.0,0.8112953]
[1761613572869,0.04636,114170.0,114160.0,0.8112953]
[1761613573258,0.04636,114170.0,114160.0,0.7236969]
[1761613574564,0.04336,114170.0,114160.0,0.7236969]
[1761613575969,0.04336,114170.0,114160.0,0.8112953]
[1761613577466,0.40416,114180.0,114170.0,0.05877]
[1761613577768,0.02184,114180.0,114170.0,0.29842425]
[1761613577957,0.04336,114180.0,114170.0,0.29842425]
[1761613578668,0.04636,114180.0,114170.0,0.29842425]
[1761613579168,0.04636,114180.0,114170.0,0.21083345]
[1761613580771,0.04636,114180.0,114170.0,0.4504876]
[1761613581166,0.04636,114180.0,114170.0,0.8112876]
[1761613581167,0.003,114180.0,114170.0,0.8112876]
[1761613581363,0.003,114180.0,114170.0,1.4112876]
[1761613581564,0.40416,114200.0,114190.0,0.05877]
[1761613581770,0.42689478,114200.0,114190.0,0.4504723]
[1761613581959,0.40537478,114200.0,114190.0,0.4504723]
[1761613582165,0.40537478,114200.0,114190.0,0.3628969]
[1761613582359,0.04457478,114200.0,114190.0,0.7236969]
[1761613582671,0.04457478,114200.0,114190.0,0.8112723]
[1761613583566,0.02273478,114200.0,114190.0,0.8112723]
[1761613583866,0.40416,114210.0,114200.0,0.05877]
[1761613584067,0.21609949,114210.0,114200.0,0.3628969]
[1761613584261,0.19336,114210.0,114200.0,0.3628969]
[1761613584971,0.20136,114210.0,114200.0,0.3628969]
[1761613587277,0.22408663,114210.0,114200.0,0.3628969]
[1761613587571,0.20136,114210.0,114200.0,0.3628969]
[1761613588971,0.02984,114210.0,114200.0,0.3628969]
[1761613589266,0.02984,114210.0,114200.0,0.4504646]
[1761613590171,0.008,114210.0,114200.0,0.4504646]
[1761613590473,0.008,114210.0,114200.0,0.96332805]
[1761613596280,0.008,114210.0,114200.0,1.56332805]
[1761613596480,0.05241,114210.0,114200.0,1.4112647]
[1761613597578,0.05241,114210.0,114200.0,0.8112647]
[1761613598182,0.05241,114210.0,114200.0,0.7236969]
[1761613598480,0.05241,114210.0,114200.0,0.8707969]
[1761613599983,0.05241,114210.0,114200.0,0.9583647]
[1761613600484,0.05241,114210.0,114200.0,0.8707969]
[1761613601282,0.05241,114210.0,114200.0,0.56667]
[1761613601483,0.05241,114210.0,114200.0,0.8707969]
[1761613602076,0.05241,114210.0,114200.0,0.9583647]
[1761613602280,0.0751459,114210.0,114200.0,0.9583647]
[1761613602683,0.0307359,114210.0,114200.0,1.11042815]
[1761613602872,0.008,114210.0,114200.0,1.11042815]
[1761613603783,0.4057399,114230.0,114220.0,0.05863]
[1761613603984,0.42847343,114230.0,114220.0,0.05863]
[1761613604282,0.42847343,114230.0,114220.0,0.3627569]
[1761613604472,0.40713343,114230.0,114220.0,0.3627569]
[1761613604984,0.38353353,114230.0,114220.0,0.3627569]
[1761613605782,0.39053353,114230.0,114220.0,0.3627569]
[1761613605982,0.41187353,114230.0,114220.0,0.3627569]
[1761613606184,0.05107353,114230.0,114220.0,0.7235569]
[1761613607184,0.07414353,114230.0,114220.0,0.7235569]
[1761613607685,0.05107353,114230.0,114220.0,0.7235569]
[1761613609380,0.02973353,114230.0,114220.0,0.7235569]
[1761613611388,0.05107353,114230.0,114220.0,0.7235569]
[1761613611593,0.07414353,114230.0,114220.0,0.7235569]
[1761613611787,0.05107353,114230.0,114220.0,0.7235569]
[1761613611989,0.02973353,114230.0,114220.0,0.7235569]
[1761613612389,0.0305999,114230.0,114220.0,0.7235569]
[1761613612690,0.0305999,114230.0,114220.0,0.87562035]
[1761613612892,0.03844291,114230.0,114220.0,0.87562035]
[1761613613092,0.06117644,114230.0,114220.0,0.87562035]
[1761613613599,0.06117644,114230.0,114220.0,0.7235569]
[1761613614482,0.06117644,114230.0,114220.0,0.87562035]
[1761613614993,0.08474529,114230.0,114220.0,0.87562035]
[1761613615388,0.08474529,114230.0,114220.0,0.96317275]
[1761613615693,0.05330238,114230.0,114220.0,0.96317275]
[1761613615996,0.04630238,114230.0,114220.0,0.96817275]
[1761613616300,0.06764238,114230.0,114220.0,0.8161093]
[1761613616593,0.09071238,114230.0,114220.0,0.7285569]
[1761613616893,0.09071238,114230.0,114220.0,0.8161093]
[1761613617692,0.09071238,114230.0,114220.0,0.66377711]
[1761613618290,0.04630238,114230.0,114220.0,0.66377711]
[1761613618692,0.06928238,114230.0,114220.0,0.66377711]
[1761613618892,0.06928238,114230.0,114220.0,0.57622471]
[1761613619087,0.09168238,114230.0,114220.0,0.66377711]